[Event "Titled Tuesday Blitz December 7 2021"]
[White "Mikhalsky, Vladimir"]
[Black "Bazarov, Konstantin"]
[WhiteFideId "14144352"]
[BlackFideId "4137000"]
[WhiteElo "2248"]
[BlackElo "2079"]
[Result "0-1"]
[Round "09"]
[TimeControl "180+1"]
[Date "2021.12.07"]
[WhiteClock "0:00:01"]
[BlackClock "0:00:15"]

1. d4 {[%clk 0:02:59]}  Nf6 {[%clk 0:02:58]} 2. c4 {[%clk 0:02:58]}  e6 {[%clk 0:02:58]} 3. g3 {[%clk 0:02:57]}  Bb4+ {[%clk 0:02:58]} 4. Bd2 {[%clk 0:02:56]}  a5 {[%clk 0:02:57]} 5. Bg2 {[%clk 0:02:55]}  O-O {[%clk 0:02:57]} 6. Nf3 {[%clk 0:02:53]}  d6 {[%clk 0:02:57]} 7. O-O {[%clk 0:02:52]}  Bxd2 {[%clk 0:02:55]} 8. Nbxd2 {[%clk 0:02:51]}  Qe7 {[%clk 0:02:56]} 9. Rc1 {[%clk 0:02:45]}  e5 {[%clk 0:02:57]} 10. c5 {[%clk 0:02:38]}  e4 {[%clk 0:02:55]} 11. cxd6 {[%clk 0:02:36]}  cxd6 {[%clk 0:02:54]} 12. Ng5 {[%clk 0:02:29]}  d5 {[%clk 0:02:53]} 13. Nb3 {[%clk 0:02:23]}  Nc6 {[%clk 0:02:50]} 14. Kh1 {[%clk 0:02:02]}  Bf5 {[%clk 0:02:49]} 15. f3 {[%clk 0:01:55]}  e3 {[%clk 0:02:41]} 16. Nh3 {[%clk 0:01:48]}  Qb4 {[%clk 0:02:37]} 17. g4 {[%clk 0:01:43]}  Bg6 {[%clk 0:02:33]} 18. g5 {[%clk 0:01:42]}  Nd7 {[%clk 0:02:28]} 19. f4 {[%clk 0:01:41]}  Bf5 {[%clk 0:02:26]} 20. Rf3 {[%clk 0:01:35]}  Rfe8 {[%clk 0:02:24]} 21. a3 {[%clk 0:01:21]}  Qb6 {[%clk 0:02:13]} 22. Rc3 {[%clk 0:01:17]}  a4 {[%clk 0:02:11]} 23. Nc5 {[%clk 0:01:17]}  Qxb2 {[%clk 0:01:57]} 24. Rfxe3 {[%clk 0:01:15]}  Rxe3 {[%clk 0:01:32]} 25. Rxe3 {[%clk 0:01:15]}  Nxc5 {[%clk 0:01:29]} 26. dxc5 {[%clk 0:01:14]}  d4 {[%clk 0:01:29]} 27. Rg3 {[%clk 0:01:09]}  Bc2 {[%clk 0:01:21]} 28. Qd2 {[%clk 0:01:04]}  Re8 {[%clk 0:01:12]} 29. Ng1 {[%clk 0:00:56]}  g6 {[%clk 0:01:06]} 30. Bd5 {[%clk 0:00:28]}  Qb1 {[%clk 0:00:54]} 31. h4 {[%clk 0:00:20]}  Ne7 {[%clk 0:00:46]} 32. Bf3 {[%clk 0:00:17]}  Nf5 {[%clk 0:00:45]} 33. Rh3 {[%clk 0:00:17]}  d3 {[%clk 0:00:42]} 34. exd3 {[%clk 0:00:16]}  Re1 {[%clk 0:00:41]} 35. Qf2 {[%clk 0:00:15]}  Rf1 {[%clk 0:00:39]} 36. Qg2 {[%clk 0:00:13]}  Bxd3 {[%clk 0:00:36]} 37. h5 {[%clk 0:00:09]}  Ne3 {[%clk 0:00:34]} 38. Qg3 {[%clk 0:00:09]}  Be4 {[%clk 0:00:31]} 39. hxg6 {[%clk 0:00:08]}  fxg6 {[%clk 0:00:28]} 40. Bxe4 {[%clk 0:00:06]}  Qxe4+ {[%clk 0:00:26]} 41. Kh2 {[%clk 0:00:06]}  Qc2+ {[%clk 0:00:23]} 42. Kh1 {[%clk 0:00:06]}  Nf5 {[%clk 0:00:21]} 43. Qd3 {[%clk 0:00:04]}  Qxd3 {[%clk 0:00:17]} 44. Rxd3 {[%clk 0:00:03]}  Rb1 {[%clk 0:00:17]} 45. Rd8+ {[%clk 0:00:03]}  Kf7 {[%clk 0:00:17]} 46. Rd7+ {[%clk 0:00:03]}  Ke6 {[%clk 0:00:17]} 47. Rxh7 {[%clk 0:00:03]}  Kd5 {[%clk 0:00:17]} 48. Rf7 {[%clk 0:00:02]}  Ke4 {[%clk 0:00:17]} 49. Rf6 {[%clk 0:00:01]}  Kxf4 {[%clk 0:00:15]} 50. Rxg6 {[%clk 0:00:01]}  Nh4 {[%clk 0:00:15]} 0-1


[Site "https://www.chess.com"]

[Event "Titled Tuesday Blitz December 7 2021"]
[White "Miszler, Levente"]
[Black "Hjartarson, Johann"]
[WhiteFideId "763276"]
[BlackFideId "2300044"]
[WhiteElo "1966"]
[BlackElo "2502"]
[Result "1-0"]
[Round "09"]
[TimeControl "180+1"]
[Date "2021.12.07"]
[WhiteClock "0:00:05"]
[BlackClock "0:00:01"]

1. Nf3 {[%clk 0:03:00]}  f5 {[%clk 0:02:57]} 2. c4 {[%clk 0:02:50]}  Nf6 {[%clk 0:02:56]} 3. Nc3 {[%clk 0:02:50]}  g6 {[%clk 0:02:56]} 4. g3 {[%clk 0:02:50]}  Bg7 {[%clk 0:02:56]} 5. Bg2 {[%clk 0:02:51]}  O-O {[%clk 0:02:56]} 6. O-O {[%clk 0:02:51]}  d6 {[%clk 0:02:55]} 7. d3 {[%clk 0:02:51]}  e5 {[%clk 0:02:55]} 8. Rb1 {[%clk 0:02:49]}  c6 {[%clk 0:02:53]} 9. b4 {[%clk 0:02:47]}  a6 {[%clk 0:02:52]} 10. a4 {[%clk 0:02:47]}  h6 {[%clk 0:02:50]} 11. b5 {[%clk 0:02:46]}  axb5 {[%clk 0:02:49]} 12. axb5 {[%clk 0:02:47]}  Be6 {[%clk 0:02:49]} 13. Nd2 {[%clk 0:02:46]}  d5 {[%clk 0:02:42]} 14. Qb3 {[%clk 0:02:43]}  d4 {[%clk 0:02:41]} 15. Na4 {[%clk 0:02:30]}  Qa5 {[%clk 0:02:31]} 16. Nc5 {[%clk 0:02:02]}  Bc8 {[%clk 0:02:29]} 17. Bb2 {[%clk 0:01:55]}  Qxd2 {[%clk 0:02:26]} 18. Rbd1 {[%clk 0:01:31]}  Qxe2 {[%clk 0:02:23]} 19. Rfe1 {[%clk 0:01:31]}  Qh5 {[%clk 0:02:20]} 20. Rxe5 {[%clk 0:01:32]}  Ng4 {[%clk 0:02:10]} 21. Re7 {[%clk 0:01:31]}  Bf6 {[%clk 0:01:58]} 22. Rc7 {[%clk 0:01:15]}  Qxh2+ {[%clk 0:01:56]} 23. Kf1 {[%clk 0:01:15]}  Be5 {[%clk 0:01:47]} 24. bxc6 {[%clk 0:01:05]}  Bxc7 {[%clk 0:01:35]} 25. cxb7 {[%clk 0:01:05]}  Ra7 {[%clk 0:01:30]} 26. bxc8=Q {[%clk 0:00:57]}  Rxc8 {[%clk 0:01:28]} 27. Bxd4 {[%clk 0:00:53]}  Be5 {[%clk 0:01:24]} 28. Bxe5 {[%clk 0:00:20]}  Nxe5 {[%clk 0:01:23]} 29. Qb6 {[%clk 0:00:21]}  Nbc6 {[%clk 0:01:14]} 30. d4 {[%clk 0:00:16]}  Ng4 {[%clk 0:01:07]} 31. d5 {[%clk 0:00:11]}  Ra2 {[%clk 0:01:04]} 32. Nd3 {[%clk 0:00:10]}  Ne7 {[%clk 0:00:17]} 33. Qe6+ {[%clk 0:00:09]}  Kh8 {[%clk 0:00:14]} 34. d6 {[%clk 0:00:09]}  Ng8 {[%clk 0:00:02]} 35. d7 {[%clk 0:00:06]}  Rd8 {[%clk 0:00:01]} 36. c5 {[%clk 0:00:05]} 1-0


[Site "https://www.chess.com"]

[Event "Titled Tuesday Blitz December 7 2021"]
[White "Nilsen, Tobias Lang"]
[Black "Kalogeris, Ioannis"]
[WhiteFideId "1521624"]
[BlackFideId "4239563"]
[WhiteElo "1979"]
[BlackElo "2287"]
[Result "0-1"]
[Round "09"]
[TimeControl "180+1"]
[Date "2021.12.07"]
[WhiteClock "0:01:28"]
[BlackClock "0:00:51"]

1. d4 {[%clk 0:03:00]}  Nf6 {[%clk 0:02:59]} 2. c4 {[%clk 0:03:00]}  e6 {[%clk 0:03:00]} 3. g3 {[%clk 0:03:00]}  c5 {[%clk 0:02:59]} 4. d5 {[%clk 0:03:00]}  exd5 {[%clk 0:03:00]} 5. cxd5 {[%clk 0:03:01]}  d6 {[%clk 0:03:00]} 6. Bg2 {[%clk 0:03:01]}  g6 {[%clk 0:03:01]} 7. Nc3 {[%clk 0:03:01]}  Bg7 {[%clk 0:03:02]} 8. Nf3 {[%clk 0:03:01]}  O-O {[%clk 0:03:02]} 9. O-O {[%clk 0:03:02]}  Nbd7 {[%clk 0:03:01]} 10. Bf4 {[%clk 0:02:57]}  Nb6 {[%clk 0:02:55]} 11. a4 {[%clk 0:02:56]}  Nh5 {[%clk 0:02:32]} 12. Bg5 {[%clk 0:02:53]}  Bf6 {[%clk 0:02:17]} 13. Bc1 {[%clk 0:02:51]}  Re8 {[%clk 0:02:12]} 14. a5 {[%clk 0:02:43]}  Nc4 {[%clk 0:02:10]} 15. Qa4 {[%clk 0:02:29]}  Ne5 {[%clk 0:02:07]} 16. Nxe5 {[%clk 0:02:28]}  Bxe5 {[%clk 0:02:03]} 17. e4 {[%clk 0:02:23]}  f5 {[%clk 0:01:47]} 18. exf5 {[%clk 0:02:10]}  Bxf5 {[%clk 0:01:42]} 19. Be3 {[%clk 0:01:52]}  Nf6 {[%clk 0:01:40]} 20. Rae1 {[%clk 0:01:46]}  Bd3 {[%clk 0:01:38]} 21. f4 {[%clk 0:01:45]}  Bxc3 {[%clk 0:01:22]} 22. bxc3 {[%clk 0:01:40]}  Bxf1 {[%clk 0:01:21]} 23. Kxf1 {[%clk 0:01:39]}  Ng4 {[%clk 0:01:18]} 24. Bg1 {[%clk 0:01:34]}  Rxe1+ {[%clk 0:01:17]} 25. Kxe1 {[%clk 0:01:34]}  Qe7+ {[%clk 0:01:13]} 26. Kd2 {[%clk 0:01:34]}  Re8 {[%clk 0:01:11]} 27. Qd1 {[%clk 0:01:32]}  Ne3 {[%clk 0:01:08]} 28. Bxe3 {[%clk 0:01:32]}  Qxe3+ {[%clk 0:01:07]} 29. Kc2 {[%clk 0:01:33]}  Qf2+ {[%clk 0:01:06]} 30. Kb3 {[%clk 0:01:32]}  Qxg2 {[%clk 0:01:04]} 31. f5 {[%clk 0:01:33]}  Re2 {[%clk 0:01:01]} 32. Qc1 {[%clk 0:01:33]}  Qxd5+ {[%clk 0:00:58]} 33. c4 {[%clk 0:01:32]}  Qd3+ {[%clk 0:00:56]} 34. Ka4 {[%clk 0:01:31]}  Ra2+ {[%clk 0:00:51]} 35. Kb5 {[%clk 0:01:28]}  Qb3# {[%clk 0:00:51]} 0-1


[Site "https://www.chess.com"]

[Event "Titled Tuesday Blitz December 7 2021"]
[White "Odegov, Artem"]
[Black "Sanchez, Robert"]
[WhiteFideId "34183644"]
[BlackFideId "2034360"]
[WhiteElo "2274"]
[BlackElo "2356"]
[Result "1-0"]
[Round "09"]
[TimeControl "180+1"]
[Date "2021.12.07"]
[WhiteClock "0:00:46"]
[BlackClock "0:00:10"]

1. d4 {[%clk 0:02:56]}  Nf6 {[%clk 0:03:00]} 2. c4 {[%clk 0:02:56]}  e6 {[%clk 0:02:59]} 3. Nf3 {[%clk 0:02:55]}  Bb4+ {[%clk 0:02:59]} 4. Bd2 {[%clk 0:02:56]}  a5 {[%clk 0:02:59]} 5. g3 {[%clk 0:02:55]}  O-O {[%clk 0:02:58]} 6. Bg2 {[%clk 0:02:56]}  d6 {[%clk 0:02:59]} 7. O-O {[%clk 0:02:56]}  Bxd2 {[%clk 0:02:59]} 8. Qxd2 {[%clk 0:02:55]}  Nbd7 {[%clk 0:02:59]} 9. Nc3 {[%clk 0:02:55]}  e5 {[%clk 0:02:59]} 10. e4 {[%clk 0:02:54]}  exd4 {[%clk 0:02:52]} 11. Nxd4 {[%clk 0:02:55]}  Nc5 {[%clk 0:02:52]} 12. Rfe1 {[%clk 0:02:53]}  Re8 {[%clk 0:02:51]} 13. Rad1 {[%clk 0:02:54]}  Bg4 {[%clk 0:02:46]} 14. f3 {[%clk 0:02:53]}  Bd7 {[%clk 0:02:44]} 15. Ndb5 {[%clk 0:02:50]}  Qc8 {[%clk 0:02:39]} 16. Qg5 {[%clk 0:02:25]}  h6 {[%clk 0:02:37]} 17. Qf4 {[%clk 0:02:21]}  Be6 {[%clk 0:02:23]} 18. b3 {[%clk 0:02:17]}  Bd7 {[%clk 0:02:09]} 19. Bf1 {[%clk 0:02:05]}  Ne6 {[%clk 0:01:59]} 20. Qe3 {[%clk 0:01:56]}  Ng5 {[%clk 0:01:57]} 21. Bg2 {[%clk 0:01:47]}  Bh3 {[%clk 0:01:52]} 22. Qd2 {[%clk 0:01:44]}  Re7 {[%clk 0:01:33]} 23. f4 {[%clk 0:01:39]}  Ngh7 {[%clk 0:01:13]} 24. e5 {[%clk 0:01:24]}  dxe5 {[%clk 0:01:10]} 25. Rxe5 {[%clk 0:01:24]}  Rd7 {[%clk 0:01:00]} 26. Bxh3 {[%clk 0:01:07]}  Rxd2 {[%clk 0:01:00]} 27. Bxc8 {[%clk 0:01:08]}  Rxd1+ {[%clk 0:01:00]} 28. Nxd1 {[%clk 0:01:09]}  Rxc8 {[%clk 0:01:00]} 29. Re7 {[%clk 0:01:09]}  Ne8 {[%clk 0:00:49]} 30. Ne3 {[%clk 0:01:05]}  Kf8 {[%clk 0:00:48]} 31. Rd7 {[%clk 0:01:05]}  Nhf6 {[%clk 0:00:47]} 32. Rd1 {[%clk 0:01:05]}  c6 {[%clk 0:00:45]} 33. Nd6 {[%clk 0:01:05]}  Nxd6 {[%clk 0:00:37]} 34. Rxd6 {[%clk 0:01:05]}  Re8 {[%clk 0:00:37]} 35. Nf5 {[%clk 0:01:04]}  Re6 {[%clk 0:00:24]} 36. Rd8+ {[%clk 0:01:01]}  Re8 {[%clk 0:00:24]} 37. Rd3 {[%clk 0:01:01]}  g6 {[%clk 0:00:21]} 38. Nd6 {[%clk 0:01:01]}  Re2 {[%clk 0:00:19]} 39. a4 {[%clk 0:00:59]}  h5 {[%clk 0:00:18]} 40. Nxb7 {[%clk 0:00:56]}  Ng4 {[%clk 0:00:17]} 41. h3 {[%clk 0:00:54]}  Ne3 {[%clk 0:00:16]} 42. Rd8+ {[%clk 0:00:53]}  Kg7 {[%clk 0:00:16]} 43. Nxa5 {[%clk 0:00:50]}  Nf5 {[%clk 0:00:14]} 44. Nxc6 {[%clk 0:00:47]}  Nxg3 {[%clk 0:00:14]} 45. a5 {[%clk 0:00:46]}  Kf6 {[%clk 0:00:13]} 46. a6 {[%clk 0:00:46]}  Ra2 {[%clk 0:00:12]} 47. a7 {[%clk 0:00:46]}  Ne2+ {[%clk 0:00:11]} 48. Kf1 {[%clk 0:00:46]}  Ng3+ {[%clk 0:00:10]} 49. Ke1 {[%clk 0:00:46]} 1-0


[Site "https://www.chess.com"]

[Event "Titled Tuesday Blitz December 7 2021"]
[White "Padmini, Rout"]
[Black "Manukian, Artak"]
[WhiteFideId "5029295"]
[BlackFideId "13301373"]
[WhiteElo "2276"]
[BlackElo "2403"]
[Result "1-0"]
[Round "09"]
[TimeControl "180+1"]
[Date "2021.12.07"]
[WhiteClock "0:02:09"]
[BlackClock "0:01:52"]

1. Nf3 {[%clk 0:02:59]}  c6 {[%clk 0:02:59]} 2. g3 {[%clk 0:03:00]}  d5 {[%clk 0:02:59]} 3. Bg2 {[%clk 0:03:00]}  Nf6 {[%clk 0:02:59]} 4. O-O {[%clk 0:03:00]}  Bf5 {[%clk 0:02:59]} 5. d3 {[%clk 0:02:58]}  Qc8 {[%clk 0:02:58]} 6. c4 {[%clk 0:02:55]}  Bh3 {[%clk 0:02:57]} 7. Nc3 {[%clk 0:02:54]}  Bxg2 {[%clk 0:02:56]} 8. Kxg2 {[%clk 0:02:55]}  e6 {[%clk 0:02:51]} 9. cxd5 {[%clk 0:02:47]}  exd5 {[%clk 0:02:49]} 10. e4 {[%clk 0:02:47]}  dxe4 {[%clk 0:02:42]} 11. dxe4 {[%clk 0:02:48]}  Be7 {[%clk 0:02:40]} 12. e5 {[%clk 0:02:48]}  Nfd7 {[%clk 0:02:30]} 13. Bg5 {[%clk 0:02:46]}  Bxg5 {[%clk 0:02:20]} 14. Nxg5 {[%clk 0:02:46]}  O-O {[%clk 0:02:19]} 15. e6 {[%clk 0:02:28]}  fxe6 {[%clk 0:02:17]} 16. Nxe6 {[%clk 0:02:29]}  Re8 {[%clk 0:02:13]} 17. Qb3 {[%clk 0:02:28]}  Kh8 {[%clk 0:02:09]} 18. Rae1 {[%clk 0:02:23]}  Na6 {[%clk 0:02:08]} 19. Ng5 {[%clk 0:02:20]}  h6 {[%clk 0:01:54]} 20. Nf7+ {[%clk 0:02:19]}  Kh7 {[%clk 0:01:52]} 21. Nd6 {[%clk 0:02:11]}  Ndc5 {[%clk 0:01:52]} 22. Qc2+ {[%clk 0:02:09]} 1-0


[Site "https://www.chess.com"]

[Event "Titled Tuesday Blitz December 7 2021"]
[White "Paravyan, David"]
[Black "Durarbayli, Vasif"]
[WhiteFideId "4194985"]
[BlackFideId "13402935"]
[WhiteElo "2656"]
[BlackElo "2599"]
[Result "1-0"]
[Round "09"]
[TimeControl "180+1"]
[Date "2021.12.07"]
[WhiteClock "0:00:17"]
[BlackClock "0:00:02"]

1. e4 {[%clk 0:03:00]}  c5 {[%clk 0:02:59]} 2. Nf3 {[%clk 0:03:00]}  d6 {[%clk 0:03:00]} 3. d4 {[%clk 0:03:00]}  cxd4 {[%clk 0:03:01]} 4. Nxd4 {[%clk 0:03:01]}  Nf6 {[%clk 0:03:01]} 5. Nc3 {[%clk 0:03:01]}  Nc6 {[%clk 0:03:02]} 6. Bg5 {[%clk 0:03:01]}  Qb6 {[%clk 0:03:02]} 7. Bxf6 {[%clk 0:02:57]}  gxf6 {[%clk 0:03:03]} 8. Nb3 {[%clk 0:02:57]}  f5 {[%clk 0:03:01]} 9. Bd3 {[%clk 0:02:55]}  fxe4 {[%clk 0:02:39]} 10. Bxe4 {[%clk 0:02:56]}  Bg7 {[%clk 0:02:38]} 11. O-O {[%clk 0:02:55]}  Bxc3 {[%clk 0:01:56]} 12. bxc3 {[%clk 0:02:54]}  Be6 {[%clk 0:01:44]} 13. Rb1 {[%clk 0:02:53]}  Qc7 {[%clk 0:01:44]} 14. Nd4 {[%clk 0:02:52]}  Rc8 {[%clk 0:01:18]} 15. Nxe6 {[%clk 0:02:37]}  fxe6 {[%clk 0:01:19]} 16. Qg4 {[%clk 0:02:37]}  Nd8 {[%clk 0:01:09]} 17. Qh5+ {[%clk 0:02:26]}  Kd7 {[%clk 0:00:56]} 18. Rfd1 {[%clk 0:02:02]}  Qc5 {[%clk 0:00:51]} 19. Qe2 {[%clk 0:01:54]}  b6 {[%clk 0:00:45]} 20. a4 {[%clk 0:01:50]}  Rc7 {[%clk 0:00:40]} 21. g3 {[%clk 0:01:40]}  h5 {[%clk 0:00:40]} 22. h4 {[%clk 0:01:39]}  Rf8 {[%clk 0:00:39]} 23. Kg2 {[%clk 0:01:35]}  Kc8 {[%clk 0:00:39]} 24. Rb5 {[%clk 0:01:31]}  Qc4 {[%clk 0:00:35]} 25. Qxc4 {[%clk 0:01:24]}  Rxc4 {[%clk 0:00:34]} 26. Bg6 {[%clk 0:01:18]}  Rg8 {[%clk 0:00:23]} 27. Bh7 {[%clk 0:01:11]}  Rh8 {[%clk 0:00:15]} 28. Rxh5 {[%clk 0:01:11]}  Rxa4 {[%clk 0:00:14]} 29. Bg6 {[%clk 0:01:08]}  Rg8 {[%clk 0:00:14]} 30. Rg5 {[%clk 0:01:07]}  Kc7 {[%clk 0:00:08]} 31. Rh1 {[%clk 0:01:02]}  e5 {[%clk 0:00:05]} 32. Bf5 {[%clk 0:00:42]}  Rh8 {[%clk 0:00:05]} 33. h5 {[%clk 0:00:40]}  e6 {[%clk 0:00:05]} 34. Rg7+ {[%clk 0:00:38]}  Kc6 {[%clk 0:00:05]} 35. Bg6 {[%clk 0:00:38]}  d5 {[%clk 0:00:02]} 36. h6 {[%clk 0:00:38]}  Kd6 {[%clk 0:00:02]} 37. h7 {[%clk 0:00:39]}  e4 {[%clk 0:00:02]} 38. Rg8 {[%clk 0:00:38]}  Rxh7 {[%clk 0:00:03]} 39. Rxh7 {[%clk 0:00:37]}  Nc6 {[%clk 0:00:04]} 40. Be8 {[%clk 0:00:30]}  Ra2 {[%clk 0:00:03]} 41. Rd7+ {[%clk 0:00:26]}  Ke5 {[%clk 0:00:03]} 42. Rg5+ {[%clk 0:00:27]}  Kf6 {[%clk 0:00:03]} 43. Rg6+ {[%clk 0:00:23]}  Kf5 {[%clk 0:00:01]} 44. Rh7 {[%clk 0:00:16]}  Ne5 {[%clk 0:00:02]} 45. Rh5# {[%clk 0:00:17]} 1-0


[Site "https://www.chess.com"]

[Event "Titled Tuesday Blitz December 7 2021"]
[White "Peng, Li Min"]
[Black "Abdilkhair, Abilmansur"]
[WhiteFideId "14112620"]
[BlackFideId "13716417"]
[WhiteElo "2412"]
[BlackElo "2063"]
[Result "1-0"]
[Round "09"]
[TimeControl "180+1"]
[Date "2021.12.07"]
[WhiteClock "0:01:14"]
[BlackClock "0:01:27"]

1. d4 {[%clk 0:02:37]}  d5 {[%clk 0:02:58]} 2. c4 {[%clk 0:02:28]}  dxc4 {[%clk 0:02:58]} 3. Nf3 {[%clk 0:02:26]}  Nf6 {[%clk 0:02:57]} 4. e3 {[%clk 0:02:26]}  Bg4 {[%clk 0:02:52]} 5. Bxc4 {[%clk 0:02:25]}  e6 {[%clk 0:02:52]} 6. O-O {[%clk 0:02:23]}  a6 {[%clk 0:02:48]} 7. Be2 {[%clk 0:02:21]}  c5 {[%clk 0:02:46]} 8. Nc3 {[%clk 0:02:19]}  Nc6 {[%clk 0:02:44]} 9. h3 {[%clk 0:02:03]}  Bh5 {[%clk 0:02:17]} 10. Ne5 {[%clk 0:01:57]}  cxd4 {[%clk 0:02:07]} 11. Nxc6 {[%clk 0:01:54]}  bxc6 {[%clk 0:02:06]} 12. exd4 {[%clk 0:01:51]}  Bxe2 {[%clk 0:02:05]} 13. Qxe2 {[%clk 0:01:50]}  Qxd4 {[%clk 0:01:49]} 14. Rd1 {[%clk 0:01:48]}  Qb4 {[%clk 0:01:41]} 15. a3 {[%clk 0:01:22]}  Qb3 {[%clk 0:01:37]} 16. Rd3 {[%clk 0:01:15]}  Qc4 {[%clk 0:01:27]} 17. Rd8+ {[%clk 0:01:14]} 1-0


[Site "https://www.chess.com"]

[Event "Titled Tuesday Blitz December 7 2021"]
[White "Piesik, Piotr"]
[Black "Pranav, V"]
[WhiteFideId "1136194"]
[BlackFideId "25060783"]
[WhiteElo "2336"]
[BlackElo "2351"]
[Result "0-1"]
[Round "09"]
[TimeControl "180+1"]
[Date "2021.12.07"]
[WhiteClock "0:00:18"]
[BlackClock "0:00:48"]

1. Nf3 {[%clk 0:02:23]}  Nf6 {[%clk 0:02:59]} 2. g3 {[%clk 0:02:23]}  d5 {[%clk 0:02:58]} 3. Bg2 {[%clk 0:02:24]}  c6 {[%clk 0:02:58]} 4. O-O {[%clk 0:02:25]}  Bg4 {[%clk 0:02:58]} 5. d3 {[%clk 0:02:26]}  Nbd7 {[%clk 0:02:58]} 6. Nbd2 {[%clk 0:02:26]}  e5 {[%clk 0:02:58]} 7. e4 {[%clk 0:02:27]}  Bd6 {[%clk 0:02:59]} 8. h3 {[%clk 0:02:27]}  Bh5 {[%clk 0:02:56]} 9. Qe1 {[%clk 0:02:26]}  O-O {[%clk 0:02:56]} 10. Nb3 {[%clk 0:02:26]}  Re8 {[%clk 0:02:55]} 11. Nh4 {[%clk 0:02:26]}  Bg6 {[%clk 0:02:55]} 12. Nxg6 {[%clk 0:02:25]}  hxg6 {[%clk 0:02:55]} 13. a4 {[%clk 0:02:25]}  a5 {[%clk 0:02:55]} 14. Bd2 {[%clk 0:02:25]}  b6 {[%clk 0:02:54]} 15. Qe2 {[%clk 0:02:23]}  Nf8 {[%clk 0:02:51]} 16. exd5 {[%clk 0:02:19]}  cxd5 {[%clk 0:02:50]} 17. c4 {[%clk 0:02:18]}  dxc4 {[%clk 0:02:50]} 18. Bxa8 {[%clk 0:02:14]}  Qxa8 {[%clk 0:02:41]} 19. dxc4 {[%clk 0:02:14]}  Qc8 {[%clk 0:02:42]} 20. Kh2 {[%clk 0:02:10]}  Ne6 {[%clk 0:02:38]} 21. Be3 {[%clk 0:02:07]}  Qc6 {[%clk 0:02:34]} 22. Rfd1 {[%clk 0:02:02]}  Bc7 {[%clk 0:02:33]} 23. c5 {[%clk 0:01:58]}  bxc5 {[%clk 0:02:31]} 24. Qc4 {[%clk 0:01:54]}  Rb8 {[%clk 0:02:16]} 25. Nxc5 {[%clk 0:01:48]}  Nd4 {[%clk 0:02:08]} 26. Bxd4 {[%clk 0:01:46]}  exd4 {[%clk 0:02:09]} 27. Qxd4 {[%clk 0:01:41]}  Bb6 {[%clk 0:02:05]} 28. Qf4 {[%clk 0:01:28]}  Bc7 {[%clk 0:01:47]} 29. Qd4 {[%clk 0:01:03]}  Rb4 {[%clk 0:01:41]} 30. Qc3 {[%clk 0:01:00]}  Rh4 {[%clk 0:01:17]} 31. Rd4 {[%clk 0:00:28]}  Be5 {[%clk 0:01:01]} 32. Rd8+ {[%clk 0:00:27]}  Kh7 {[%clk 0:00:59]} 33. Qxe5 {[%clk 0:00:27]}  Ng4+ {[%clk 0:00:59]} 34. Kg1 {[%clk 0:00:23]}  Nxe5 {[%clk 0:00:59]} 35. gxh4 {[%clk 0:00:23]}  Qxc5 {[%clk 0:00:58]} 36. Rad1 {[%clk 0:00:22]}  Nf3+ {[%clk 0:00:57]} 37. Kf1 {[%clk 0:00:21]}  Qc4+ {[%clk 0:00:57]} 38. Kg2 {[%clk 0:00:20]}  Nxh4+ {[%clk 0:00:57]} 39. Kg3 {[%clk 0:00:21]}  Qe4 {[%clk 0:00:56]} 40. R1d4 {[%clk 0:00:18]}  Nf5+ {[%clk 0:00:48]} 0-1


[Site "https://www.chess.com"]

[Event "Titled Tuesday Blitz December 7 2021"]
[White "Popadic, Dragan"]
[Black "Hamley, Ryan"]
[WhiteFideId "913650"]
[BlackFideId "30959497"]
[WhiteElo "2177"]
[BlackElo "2556"]
[Result "0-1"]
[Round "09"]
[TimeControl "180+1"]
[Date "2021.12.07"]
[WhiteClock "0:00:01"]
[BlackClock "0:00:02"]

1. e4 {[%clk 0:03:00]}  c5 {[%clk 0:02:58]} 2. Nc3 {[%clk 0:03:00]}  d6 {[%clk 0:02:58]} 3. f4 {[%clk 0:02:59]}  g6 {[%clk 0:02:55]} 4. Nf3 {[%clk 0:02:59]}  Bg7 {[%clk 0:02:56]} 5. Bc4 {[%clk 0:02:58]}  e6 {[%clk 0:02:56]} 6. d3 {[%clk 0:02:58]}  Ne7 {[%clk 0:02:51]} 7. O-O {[%clk 0:02:57]}  O-O {[%clk 0:02:51]} 8. Qe1 {[%clk 0:02:58]}  a6 {[%clk 0:02:48]} 9. a4 {[%clk 0:02:57]}  Nbc6 {[%clk 0:02:48]} 10. f5 {[%clk 0:02:55]}  gxf5 {[%clk 0:02:41]} 11. Qh4 {[%clk 0:02:55]}  Ng6 {[%clk 0:02:40]} 12. Qh5 {[%clk 0:02:54]}  fxe4 {[%clk 0:02:24]} 13. dxe4 {[%clk 0:02:54]}  Nce5 {[%clk 0:02:21]} 14. Nxe5 {[%clk 0:02:47]}  dxe5 {[%clk 0:02:12]} 15. Be3 {[%clk 0:02:41]}  b6 {[%clk 0:02:11]} 16. Rad1 {[%clk 0:02:40]}  Qe7 {[%clk 0:02:10]} 17. Bg5 {[%clk 0:02:02]}  f6 {[%clk 0:02:10]} 18. Be3 {[%clk 0:02:01]}  Bb7 {[%clk 0:02:09]} 19. Rf3 {[%clk 0:01:58]}  Rf7 {[%clk 0:02:04]} 20. Rdf1 {[%clk 0:01:54]}  Rd8 {[%clk 0:02:03]} 21. Rh3 {[%clk 0:01:37]}  Bf8 {[%clk 0:02:02]} 22. Rg3 {[%clk 0:01:35]}  Bg7 {[%clk 0:01:36]} 23. h4 {[%clk 0:01:26]}  Rd4 {[%clk 0:01:13]} 24. Bxd4 {[%clk 0:01:04]}  exd4 {[%clk 0:01:12]} 25. Ne2 {[%clk 0:00:58]}  Bxe4 {[%clk 0:01:12]} 26. Bd3 {[%clk 0:00:47]}  Bxd3 {[%clk 0:01:06]} 27. cxd3 {[%clk 0:00:47]}  Qd6 {[%clk 0:01:02]} 28. Rxg6 {[%clk 0:00:31]}  hxg6 {[%clk 0:01:01]} 29. Qxg6 {[%clk 0:00:31]}  Qe5 {[%clk 0:00:56]} 30. Nf4 {[%clk 0:00:25]}  Kf8 {[%clk 0:00:37]} 31. Qg4 {[%clk 0:00:19]}  Qe3+ {[%clk 0:00:28]} 32. Kh1 {[%clk 0:00:18]}  Bh6 {[%clk 0:00:23]} 33. Nxe6+ {[%clk 0:00:16]}  Ke7 {[%clk 0:00:23]} 34. Nc7 {[%clk 0:00:13]}  Qe5 {[%clk 0:00:18]} 35. Qc8 {[%clk 0:00:11]}  Kd6 {[%clk 0:00:07]} 36. Ne8+ {[%clk 0:00:10]}  Ke7 {[%clk 0:00:08]} 37. Nc7 {[%clk 0:00:09]}  Kd6 {[%clk 0:00:08]} 38. Nxa6 {[%clk 0:00:07]}  Be3 {[%clk 0:00:04]} 39. Qb8+ {[%clk 0:00:06]}  Kd5 {[%clk 0:00:03]} 40. Qd8+ {[%clk 0:00:04]}  Qd6 {[%clk 0:00:02]} 41. Qxd6+ {[%clk 0:00:03]}  Kxd6 {[%clk 0:00:03]} 42. a5 {[%clk 0:00:03]}  bxa5 {[%clk 0:00:03]} 43. Ra1 {[%clk 0:00:02]}  Rh7 {[%clk 0:00:03]} 44. g3 {[%clk 0:00:01]}  Ra7 {[%clk 0:00:02]} 0-1


[Site "https://www.chess.com"]